bitfinex-derivatives/quotes_SOLF0:USTF0_20250221
["timestamp","ask_amount","ask_price","bid_price","bid_amount"]
[1740152212786,5.7551,173.71,173.61,37.60193974]
[1740152212982,10.6134,173.75,173.61,37.60193974]
[1740152213682,0.04225645,173.7,173.66,0.03632856]
[1740152213882,0.04225645,173.7,173.44,157.81778824]
[1740152214089,0.04225645,173.7,173.5,37.60193974]
[1740152214291,37.60193974,173.72,173.54,37.60193974]
[1740152214485,196.5021,173.74,173.54,37.60193974]
[1740152214788,196.5021,173.74,173.58,37.60193974]
[1740152214979,3.5021,173.74,173.62,37.60193974]
[1740152215182,0.04096624,173.68,173.64,0.03644579]
[1740152215490,37.60193974,173.89,173.66,37.60193974]
[1740152215783,3.6075,173.83,173.7,37.60193974]
[1740152216585,37.60193974,173.77,173.58,31.55380789]
[1740152216991,5.7567,173.66,173.58,31.55380789]
[1740152217191,37.60193974,173.73,173.6,31.55380789]
[1740152217387,3.6075,173.72,173.6,31.55380789]
[1740152217687,193.0,173.76,173.6,69.15574763]
[1740152217891,37.60193974,173.77,173.6,69.15574763]
[1740152218186,3.6075,173.8,173.6,69.15574763]
[1740152218391,0.04164579,173.68,173.64,0.03738049]
[1740152218587,37.60193974,173.77,173.6,69.15574763]
[1740152218988,0.0372219,173.68,173.64,0.03967608]
[1740152219186,0.0372219,173.68,173.64,37.64161582]
[1740152219391,3.466,173.79,173.66,5.7564]
[1740152219791,0.03883619,173.68,173.64,37.64510033]
[1740152220090,15.084,173.68,173.64,37.60193974]
[1740152220291,9.892e-05,173.68,173.64,37.60193974]
[1740152220488,9.892e-05,173.68,173.67,5.756]
[1740152221090,193.0,173.9,173.67,37.60193974]
[1740152221283,7.3552,173.88,173.67,37.60193974]
[1740152221483,7.058e-05,173.69,173.67,37.60193974]
[1740152221897,7.3552,173.88,173.67,37.60193974]
[1740152222490,7.3552,173.88,173.68,37.60193974]
[1740152222794,0.03866726,173.77,173.74,0.04336928]
[1740152222995,5.7534,173.76,173.74,0.04336928]
[1740152223496,37.60193974,173.79,173.63,5.7572]
[1740152223687,3.6161,173.76,173.62,37.60193974]
[1740152223893,41.21803974,173.76,173.59,37.60193974]
[1740152224199,37.60193974,173.73,173.56,37.60193974]
[1740152224397,37.60193974,173.67,173.54,31.55380789]
[1740152224597,6.9965,173.66,173.54,31.55380789]
[1740152224896,6.9965,173.66,173.54,69.15574763]
[1740152225292,0.03994049,173.62,173.58,0.04134189]
[1740152226193,0.03994049,173.62,173.58,5.80044189]
[1740152226401,0.03994049,173.62,173.6,37.60193974]
[1740152226596,4.049e-05,173.62,173.6,37.60193974]
[1740152226790,3.375,173.72,173.64,5.7571]
[1740152227299,3.375,173.72,173.63,37.60193974]
[1740152227499,3.5895,173.78,173.63,37.60193974]
[1740152227696,7.2991,173.78,173.68,5.7558]
[1740152227893,7.2991,173.78,173.66,37.60193974]
[1740152228096,0.03898676,173.72,173.69,37.6449465]
[1740152228302,8.676e-05,173.72,173.69,37.6449465]
[1740152228802,8.676e-05,173.72,173.7,5.7549]
[1740152229297,8.676e-05,173.72,173.69,0.04300676]
[1740152230799,8.676e-05,173.72,173.69,37.6449465]
[1740152230997,8.676e-05,173.72,173.69,0.04300676]
[1740152231393,5.75468676,173.72,173.69,0.04300676]
[1740152231599,8.676e-05,173.72,173.69,0.04300676]
[1740152232493,8.676e-05,173.72,173.57,188.38193974]
[1740152233000,48.68473974,173.75,173.57,188.38193974]
[1740152233199,37.60193974,173.72,173.57,156.5392]
[1740152233495,37.60193974,173.69,173.51,69.15574763]
[1740152233695,5.7585,173.6,173.54,5.7603]
[1740152234094,37.64208905,173.66,173.48,166.05391763]
[1740152234298,7.0796,173.65,173.55,0.0439882]
[1740152234496,37.60193974,173.63,173.55,0.0439882]
[1740152234697,37.60193974,173.63,173.46,31.55380789]
[1740152234897,0.03963321,173.59,173.46,31.55380789]
[1740152235099,0.03963321,173.59,173.46,37.31670789]
[1740152235302,0.03963321,173.59,173.46,31.55380789]
[1740152235503,37.60193974,173.6,173.46,31.55380789]
[1740152235802,5.7612,173.52,173.46,31.55380789]
[1740152236002,37.60193974,173.6,173.46,31.55380789]
[1740152236309,0.04190845,173.55,173.51,0.04348653]
[1740152236604,37.60193974,173.54,173.36,37.60193974]
[1740152236805,3.4253,173.53,173.36,37.60193974]
[1740152237404,37.60193974,173.51,173.33,69.15574763]
[1740152237606,37.60193974,173.48,173.33,69.15574763]
[1740152237803,0.04100939,173.46,173.43,0.04073389]
[1740152238003,0.04100939,173.46,173.33,31.55380789]
[1740152238403,37.60193974,173.48,173.33,37.32100789]
[1740152238604,37.60193974,173.48,173.33,31.55380789]
[1740152238909,37.60193974,173.45,173.27,37.60193974]
[1740152239308,0.04294091,173.42,173.27,37.60193974]
[1740152239608,37.60193974,173.45,173.3,37.60193974]
[1740152239810,0.03934167,173.36,173.3,37.60193974]
[1740152240200,193.0,173.47,173.3,37.60193974]
[1740152240708,7.003e-05,173.35,173.34,5.7671]
[1740152241009,37.60193974,173.48,173.33,37.60193974]
[1740152241510,41.02723974,173.53,173.36,37.60193974]
[1740152241709,5.7625,173.48,173.36,37.60193974]
[1740152242010,0.03911113,173.46,173.43,0.04042271]
[1740152242709,5.80221113,173.46,173.43,0.04042271]
[1740152243011,0.03911113,173.46,173.3,37.60193974]
[1740152243207,5.7645,173.42,173.34,5.7669]
[1740152243407,3.6733,173.45,173.34,5.7669]
[1740152243609,3.6733,173.45,173.3,37.60193974]
[1740152243910,3.6733,173.45,173.26,152.20555329]
[1740152244102,3.6733,173.45,173.29,37.60193974]
[1740152244300,0.03702264,173.37,173.35,5.7667]
[1740152244504,0.03702264,173.37,173.29,37.60193974]
[1740152244701,0.03702264,173.37,173.26,189.80749303]
[1740152245010,3.6714,173.42,173.26,189.80749303]
[1740152245309,0.04359619,173.33,173.32,5.7678]
[1740152245711,3.6714,173.42,173.29,37.60193974]
[1740152246209,3.6714,173.42,173.32,37.60193974]
[1740152246410,3.6714,173.42,173.35,5.7664]
[1740152246712,37.60193974,173.36,173.2,323.60917735]
[1740152247009,37.60193974,173.31,173.2,323.60917735]
[1740152247204,7.002,173.3,173.2,323.60917735]
[1740152247404,5.7701,173.25,173.2,323.60917735]
[1740152247602,7.002,173.3,173.2,323.60917735]
[1740152248008,7.002,173.3,173.2,361.21111709]
[1740152248201,7.002,173.3,173.2,323.60917735]
[1740152248611,44.60393974,173.3,173.2,323.60917735]
[1740152248808,37.60193974,173.27,173.12,0.0827]
[1740152249105,0.04359254,173.28,173.12,0.0827]
[1740152249309,44.60393974,173.3,173.13,37.60193974]
[1740152249511,7.002,173.3,173.13,37.60193974]
[1740152250015,7.002,173.3,173.15,5.7732]
[1740152250216,0.04120173,173.23,173.13,37.60193974]
[1740152250514,0.04120173,173.23,173.15,5.7733]
[1740152250717,0.04120173,173.23,173.13,37.60193974]
[1740152251113,0.04120173,173.23,173.16,5.7731]
[1740152251415,0.04120173,173.23,173.16,37.60193974]
[1740152251614,0.04120173,173.23,173.12,0.0827]
[1740152251813,3.7394,173.34,173.2,37.60193974]
[1740152252014,3.7394,173.34,173.23,37.60193974]
[1740152252312,6.9745,173.38,173.23,37.60193974]
[1740152252509,37.60193974,173.37,173.21,0.0955]
[1740152252707,5.7687,173.3,173.21,5.8666]
[1740152252912,37.60193974,173.37,173.21,0.0955]
[1740152253215,37.60193974,173.37,173.23,5.7707]
[1740152253418,0.04214168,173.27,173.24,0.04120173]
[1740152253815,37.60193974,173.37,173.21,0.0955]
[1740152254011,3.5826,173.36,173.21,0.0955]
[1740152254216,0.04035004,173.27,173.24,0.04075614]
[1740152254616,5.7692,173.28,173.21,5.7712]
[1740152254821,3.5826,173.36,173.17,37.60193974]
[1740152255020,0.04402025,173.27,173.24,0.0396931]
[1740152255418,37.60193974,173.31,173.06,344.08]
[1740152255619,5.7704,173.25,173.13,37.60193974]
[1740152255819,5.7704,173.25,173.24,0.04120173]
[1740152256119,5.7704,173.24,173.17,5.7725]
[1740152256330,37.60193974,173.31,173.13,37.60193974]
[1740152256525,0.0364135,173.26,173.23,4.096e-05]
[1740152256725,5.7704,173.24,173.23,4.096e-05]
[1740152257833,9.1744,173.25,173.23,4.096e-05]
[1740152258227,3.4042,173.25,173.23,4.096e-05]
[1740152258531,0.0364135,173.26,173.23,4.096e-05]
[1740152261234,5.7702,173.25,173.23,4.096e-05]
[1740152261436,0.0364135,173.26,173.23,4.096e-05]
[1740152262936,5.7704,173.24,173.23,4.096e-05]
[1740152263735,5.8064135,173.26,173.23,4.096e-05]
[1740152264029,0.0364135,173.26,173.23,4.096e-05]
[1740152264431,0.0364135,173.26,173.25,5.7701]
[1740152264732,0.0364135,173.26,173.24,37.60193974]
[1740152265031,0.0364135,173.26,173.23,4.096e-05]
[1740152268737,3.574,173.35,173.24,37.60193974]
[1740152268941,1.15333602,173.41,173.27,37.60193974]
[1740152269137,37.60193974,173.38,173.23,37.60193974]
[1740152269332,37.60193974,173.35,173.12,31.1791694]
[1740152269642,37.60193974,173.32,173.15,37.60193974]
[1740152269941,5.7685,173.3,173.18,37.60193974]
[1740152270238,0.03738433,173.25,173.22,0.03791523]
[1740152270733,37.60193974,173.35,173.18,37.60193974]
[1740152270939,0.04111892,173.25,173.22,0.03791523]
[1740152271233,10.8446,173.37,173.24,5.7704]
[1740152271434,10.8446,173.37,173.21,37.60193974]
[1740152271640,0.04295495,173.25,173.24,5.7704]
[1740152271831,10.8446,173.37,173.24,37.60193974]
[1740152272239,10.8446,173.37,173.27,5.7691]
[1740152272435,10.8446,173.37,173.2,188.70193974]
[1740152272634,37.60193974,173.35,173.2,188.70193974]
[1740152272841,5.7694,173.28,173.21,5.7714]
[1740152273136,10.8446,173.37,173.2,151.1]
[1740152273137,0.04349093,173.29,173.26,7.274e-05]
[1740152273341,13.0282,173.27,173.26,7.274e-05]
[1740152273541,7.2588,173.27,173.2,31.1791694]
[1740152274440,0.04253407,173.25,173.22,0.03875553]
[1740152274743,10.7018,173.31,173.22,0.03875553]
[1740152275136,0.04309237,173.25,173.22,0.03875553]
[1740152276141,5.7705,173.24,173.22,0.03875553]
[1740152276343,0.04309237,173.25,173.22,5.553e-05]
[1740152277339,5.7704,173.24,173.22,5.553e-05]
[1740152277537,0.04309237,173.25,173.22,5.553e-05]
[1740152277941,5.7708,173.23,173.22,5.553e-05]
[1740152280144,0.04309237,173.25,173.22,5.553e-05]
[1740152280748,5.7708,173.23,173.22,5.553e-05]
[1740152281346,0.04309237,173.25,173.22,5.553e-05]
[1740152281849,5.7708,173.23,173.22,5.553e-05]
[1740152286243,5.7731,173.16,173.15,10.54352493]
[1740152286444,5.7731,173.16,173.15,2.493e-05]
[1740152288152,0.04225993,173.17,173.11,157.81778824]
[1740152288153,5.7741,173.13,173.12,22.03561432]
[1740152288654,0.04225993,173.17,173.12,22.03561432]
[1740152289755,0.04225993,173.17,173.12,27.81001432]
[1740152290151,0.04225993,173.17,173.12,22.03561432]
[1740152290555,7.2709,173.21,173.12,22.03561432]
[1740152290556,193.0,173.28,173.12,59.63755406]
[1740152290754,5.7698,173.26,173.19,5.7721]
[1740152290952,37.60193974,173.32,173.15,37.60193974]
[1740152291153,37.60193974,173.32,173.12,59.63755406]
[1740152291353,37.60193974,173.32,173.12,37.60193974]
[1740152291354,5.77,173.26,173.12,37.60193974]
[1740152291654,48.3184709,173.32,173.12,37.60193974]
[1740152291954,10.9025,173.33,173.18,37.60193974]
[1740152291955,6.38e-06,173.21,173.18,37.60193974]
[1740152292155,10.9025,173.33,173.18,37.60193974]
[1740152292355,10.9025,173.33,173.22,37.60193974]
[1740152292753,7.187,173.33,173.22,37.60193974]
[1740152292958,5.7663,173.37,173.29,5.7688]
[1740152293155,3.492,173.38,173.25,37.60193974]
[1740152293359,0.03641442,173.35,173.31,0.03998995]
[1740152294459,5.7673,173.34,173.31,0.03998995]
[1740152294759,0.03641442,173.35,173.31,0.03998995]
[1740152296558,0.03641442,173.35,173.31,8.995e-05]
[1740152296760,5.7678,173.32,173.31,8.995e-05]
[1740152297466,43.36973974,173.32,173.31,8.995e-05]
[1740152297858,5.7678,173.32,173.31,8.995e-05]
[1740152298965,7.3083,173.33,173.31,8.995e-05]
[1740152300062,5.7678,173.32,173.31,8.995e-05]
[1740152300664,7.3083,173.33,173.31,8.995e-05]
[1740152301362,0.03641442,173.35,173.31,8.995e-05]
[1740152301866,0.03641442,173.35,173.34,5.7671]
[1740152302068,1.442e-05,173.35,173.34,5.7671]
[1740152302768,193.0,173.53,173.34,189.27937934]
[1740152302957,10.9174,173.52,173.39,38.17937934]
[1740152303159,152.10911921,173.54,173.39,38.17937934]
[1740152303558,152.10911921,173.54,173.49,5.762]
[1740152303762,9.782e-05,173.48,173.46,38.17937934]
[1740152304259,152.10911921,173.54,173.46,38.17937934]
[1740152304465,11.0348,173.6,173.46,38.17937934]
[1740152305069,0.03746768,173.55,173.51,0.0371702]
[1740152306071,38.17937934,173.54,173.51,7.02e-05]
[1740152306268,5.7628,173.48,173.35,38.17937934]
[1740152306471,38.17937934,173.54,173.35,38.17937934]
[1740152306672,193.0,173.53,173.35,38.17937934]
[1740152307272,38.17937934,173.5,173.34,151.1]
[1740152307471,0.0410625,173.46,173.42,0.04073857]
[1740152307874,5.7642,173.43,173.42,0.04073857]
[1740152308074,0.0410625,173.46,173.42,0.04073857]
[1740152308275,0.0410625,173.46,173.43,38.21140376]
[1740152308575,0.0410625,173.46,173.42,0.04073857]
[1740152309475,0.0410625,173.46,173.34,151.1]
[1740152309777,231.21140376,173.45,173.29,38.21140376]
[1740152310174,231.21140376,173.45,173.26,38.21140376]
[1740152310375,193.0,173.44,173.26,38.21140376]
[1740152310568,38.21140376,173.42,173.26,38.21140376]
[1740152310971,0.04398539,173.37,173.33,0.03988661]
[1740152311667,0.04398539,173.37,173.2,38.21140376]
[1740152311872,38.21140376,173.36,173.21,5.7711]
[1740152312076,38.21140376,173.36,173.19,151.04]
[1740152312673,193.0,173.35,173.19,151.04]
[1740152312873,0.0395557,173.29,173.19,151.04]
[1740152313270,0.0395557,173.29,173.17,38.21140376]
[1740152313472,0.0395557,173.29,173.18,5.7724]
[1740152313671,38.21140376,173.33,173.17,38.21140376]
[1740152314073,0.03905224,173.25,173.2,5.7717]
[1740152314279,0.03905224,173.25,173.17,38.21140376]
[1740152314479,0.03905224,173.25,173.2,5.7717]
[1740152314676,0.03905224,173.25,173.14,166.95238787]
[1740152315080,38.21140376,173.3,173.14,128.74098411]
[1740152315274,3.7196,173.29,173.14,128.74098411]
[1740152315481,0.0385105,173.21,173.14,128.74098411]
[1740152317073,0.0385105,173.21,173.15,38.21140376]
[1740152317683,0.0385105,173.21,173.14,128.74098411]
[1740152317882,0.0385105,173.21,173.16,5.7731]
[1740152318089,0.0385105,173.21,173.14,128.74098411]
[1740152318385,0.0385105,173.21,173.18,5.7724]
[1740152318687,0.0385105,173.21,173.14,128.74098411]
[1740152320689,0.0385105,173.21,173.17,38.21140376]
[1740152321587,0.0385105,173.21,173.14,128.74098411]
[1740152321990,0.0385105,173.21,173.17,5.7726]
[1740152322493,0.0385105,173.21,173.2,5.7718]
[1740152322686,3.7196,173.29,173.19,38.21140376]
[1740152323085,3.7196,173.29,173.19,38.23570376]
[1740152323490,5.7691,173.28,173.23,5.7707]
[1740152323991,5.7691,173.28,173.23,5.7705]
[1740152324192,5.7691,173.28,173.19,38.21140376]
[1740152324193,0.04147174,173.27,173.19,38.21140376]
[1740152324386,0.04147174,173.27,173.24,0.0385105]
[1740152324887,38.21140376,173.33,173.15,0.1066]
[1740152325088,0.04325281,173.27,173.24,0.0385105]
[1740152325688,0.04325281,173.27,173.25,5.7701]
[1740152326395,0.04325281,173.27,173.24,0.0385105]
[1740152327192,0.04325281,173.27,173.26,5.7698]
[1740152328190,5.7665,173.36,173.31,5.7681]
[1740152328390,3.5586,173.37,173.24,38.24991426]
[1740152328593,3.5586,173.37,173.24,38.21140376]
[1740152329291,3.5586,173.37,173.27,38.21140376]
[1740152329486,0.03873497,173.32,173.29,0.04132741]
[1740152329890,231.21140376,173.47,173.3,38.21140376]
[1740152330093,3.6396,173.43,173.3,38.21140376]
[1740152330294,3.6396,173.43,173.33,38.21140376]
[1740152331090,5.7657,173.39,173.3,38.21140376]
[1740152331293,0.03928567,173.4,173.36,0.04382632]
[1740152331494,7.3702,173.46,173.36,0.04382632]
[1740152331693,5.7639,173.44,173.38,5.7658]
[1740152331998,0.04115909,173.4,173.36,0.04382632]
[1740152332198,11.0098,173.46,173.33,38.21140376]
[1740152332491,11.0098,173.46,173.36,0.0419633]
[1740152332492,0.03985592,173.4,173.36,0.0419633]
[1740152332997,0.03985592,173.4,173.37,5.7661]
[1740152333598,0.03985592,173.4,173.36,0.0419633]
[1740152333988,0.03985592,173.4,173.36,5.8083633]
[1740152334386,0.03985592,173.4,173.36,38.25336706]
[1740152334991,5.7628,173.47,173.39,38.21140376]
[1740152335193,199.8377,173.53,173.39,38.21140376]
[1740152335894,199.8377,173.53,173.43,5.7641]
[1740152336100,0.04163664,173.48,173.44,0.04327854]
[1740152336599,0.04163664,173.48,173.37,151.06]
[1740152336992,38.21140376,173.5,173.37,151.06]
[1740152337603,5.7651,173.41,173.37,151.06]
[1740152337900,0.03931028,173.45,173.42,0.03864344]
[1740152338096,0.03931028,173.45,173.33,38.21140376]
[1740152338097,0.03931028,173.45,173.3,38.21140376]
[1740152338399,38.21140376,173.47,173.3,38.21140376]
[1740152338791,5.7654,173.4,173.3,38.21140376]
[1740152338992,38.21140376,173.47,173.3,38.21140376]
[1740152339195,0.03973384,173.37,173.33,0.04320034]
[1740152339699,0.04235725,173.37,173.33,0.04013957]
[1740152339902,0.04235725,173.37,173.24,189.25140376]
[1740152340098,0.04235725,173.37,173.24,156.8101]
[1740152340291,38.21140376,173.38,173.24,156.8101]
[1740152340492,38.21140376,173.35,173.18,61.89337808]
[1740152340691,38.21140376,173.32,173.2,5.7716]
[1740152340896,3.7438,173.31,173.18,23.68197432]
[1740152341102,0.03813865,173.28,173.24,0.03829264]
[1740152341296,5.80753865,173.28,173.24,0.03829264]
[1740152341498,0.03813865,173.28,173.24,0.03829264]
[1740152341699,5.7698,173.26,173.24,0.03829264]
[1740152341901,0.03813865,173.28,173.24,0.03829264]
[1740152342605,0.03813865,173.28,173.15,23.68197432]
[1740152342801,5.7731,173.16,173.15,23.68197432]
[1740152343004,5.7731,173.16,173.15,6.80037432]
[1740152343308,5.7734,173.15,173.14,43.53493879]
[1740152343498,38.21140376,173.2,173.13,84.65700819]
[1740152343499,193.0,173.19,173.13,84.65700819]
[1740152343700,38.24769661,173.17,173.13,14.68451242]
[1740152343998,38.21140376,173.14,173.04,138.78888231]
[1740152344198,193.0,173.13,173.04,138.78888231]
[1740152344397,193.0,173.12,173.04,138.78888231]
[1740152344905,0.03645182,173.1,173.04,138.78888231]
[1740152345406,193.0,173.21,173.06,38.21140376]
[1740152345803,38.21140376,173.2,173.04,138.78888231]
[1740152346106,38.21140376,173.17,173.04,138.78888231]
[1740152346306,193.0,173.16,173.04,138.78888231]
[1740152346601,38.21140376,173.14,173.08,0.03729202]
[1740152346907,0.04175998,173.12,173.08,0.03729202]
[1740152347096,5.7754,173.09,173.08,0.03729202]
[1740152347298,0.04175998,173.12,173.08,0.03729202]
[1740152348808,0.04175998,173.12,173.11,5.7748]
[1740152349008,193.0,173.21,173.09,38.21140376]
[1740152349206,193.0,173.21,173.2,5.7718]
[1740152349505,268.13639901,173.3,173.15,38.21140376]
[1740152349506,193.0,173.29,173.15,38.21140376]
[1740152349908,190.13639901,173.3,173.18,38.21140376]
[1740152350104,152.10911921,173.27,173.15,38.21140376]
[1740152350300,0.04412057,173.23,173.2,0.04159307]
[1740152351209,38.21140376,173.21,173.09,3.6965]
[1740152351408,38.21140376,173.21,173.03,38.21140376]
[1740152351707,193.0,173.2,173.04,3.6965]
[1740152352607,0.04344865,173.14,173.1,0.03745893]
[1740152355301,5.7746,173.12,173.1,0.03745893]
[1740152355507,0.04344865,173.14,173.1,0.03745893]
[1740152356009,5.7748,173.11,173.1,0.03745893]
[1740152356209,5.7748,173.11,173.1,5.893e-05]
[1740152358601,0.04344865,173.14,173.02,6.7577]
[1740152359006,193.0,173.15,173.02,6.7577]
[1740152359912,38.25402146,173.1,172.97,3.6106]
[1740152360211,38.21140376,173.1,172.97,3.6106]
[1740152360412,0.03907704,173.05,172.97,3.6106]
[1740152360806,38.21140376,173.04,172.93,5.7805]
[1740152361010,193.0,173.03,172.92,27.51529862]
[1740152361408,0.03723265,172.99,172.92,27.51529862]
[1740152361609,38.21140376,172.98,172.92,27.51529862]
[1740152362113,0.03723265,172.99,172.92,27.51529862]
[1740152362310,0.03723265,172.99,172.94,5.7804]
[1740152362511,0.03723265,172.99,172.92,27.51529862]
[1740152363209,38.21140376,172.98,172.92,27.51529862]
[1740152363412,5.7808,172.93,172.92,27.51529862]
[1740152363613,38.21140376,172.98,172.92,27.51529862]
[1740152364112,0.04146691,172.97,172.92,27.51529862]
[1740152365015,5.7808,172.93,172.92,27.51529862]
[1740152365210,5.7808,172.93,172.92,8.28769862]
[1740152365411,5.7808,172.93,172.92,9.862e-05]
[1740152366012,38.21140376,172.95,172.92,9.862e-05]
[1740152366214,193.0,172.96,172.92,9.862e-05]
[1740152367511,38.21140376,172.93,172.81,6.9107]
[1740152367714,38.21140376,172.9,172.74,10.6749]
[1740152367909,38.21140376,172.87,172.74,3.4591]
[1740152368215,0.03847674,172.84,172.74,3.4591]
[1740152368511,5.7845,172.82,172.74,3.4591]
[1740152368716,0.03847674,172.84,172.74,3.4591]
[1740152368717,38.2498805,172.84,172.74,3.4591]
[1740152368912,38.21140376,172.84,172.74,3.4591]
[1740152369317,0.04333138,172.81,172.74,3.4591]
[1740152369818,0.04333138,172.81,172.72,3.5125]
[1740152370017,5.7862,172.77,172.66,38.21140376]
[1740152370218,38.25473514,172.81,172.67,132.67735228]
[1740152370418,38.21140376,172.81,172.67,3.5915]
[1740152370816,0.04177568,172.76,172.67,3.5915]
[1740152371118,0.04177568,172.76,172.75,5.7868]
[1740152371615,1.15734043,172.81,172.71,38.21140376]
[1740152371819,50.45140376,172.88,172.71,38.21140376]
[1740152372021,5.7845,172.83,172.68,38.21140376]
[1740152372316,50.45140376,172.88,172.71,38.21140376]
[1740152372819,38.21140376,172.8,172.78,0.03983529]
[1740152373216,5.7855,172.79,172.78,0.03983529]
[1740152373418,0.037781,172.81,172.78,0.03983529]
[1740152374316,0.037781,172.81,172.8,5.7851]
[1740152374520,38.21140376,172.91,172.78,0.03983529]
[1740152374722,5.7824,172.89,172.78,0.03983529]
[1740152374918,38.21140376,172.94,172.76,6.8738]
[1740152375120,38.21140376,172.94,172.78,38.21140376]
[1740152375320,38.21140376,172.94,172.87,5.7827]
[1740152375522,193.0,172.96,172.78,38.21140376]
[1740152375721,0.04237874,172.88,172.84,0.03806925]
[1740152375918,7.874e-05,172.88,172.84,0.03806925]
[1740152376123,7.874e-05,172.88,172.87,5.7828]
[1740152376315,38.21140376,173.01,172.85,3.5612]
[1740152376518,193.0,173.07,172.9,38.21140376]
[1740152376519,38.21140376,173.07,172.9,38.21140376]
[1740152376717,38.21140376,173.1,172.93,38.21140376]
[1740152376924,202.29639901,173.11,172.96,38.21140376]
[1740152377124,202.29639901,173.11,172.97,7.1887]
[1740152377428,190.13639901,173.11,172.99,38.24980699]
[1740152377920,190.13639901,173.11,172.99,0.03840323]
[1740152378824,0.0397226,173.06,172.99,0.03840323]
[1740152379223,5.7782,173.01,172.99,0.03840323]
[1740152379527,193.0397226,173.06,172.99,0.03840323]
[1740152379727,5.775,173.11,173.02,5.7777]
[1740152379927,38.21140376,173.13,172.99,0.03840323]
[1740152380129,0.04354419,173.04,172.96,38.21140376]
[1740152380330,0.04354419,173.04,172.94,3.5612]
[1740152380620,38.21140376,173.04,172.91,6.9768]
[1740152380828,0.04352792,173.01,172.91,6.9768]
[1740152381023,0.04352792,173.01,172.97,0.03825]
[1740152381619,0.04352792,173.01,172.97,5e-05]
[1740152382522,5.7791,172.98,172.97,5e-05]
[1740152383028,43.99050376,172.98,172.97,5e-05]
[1740152383428,38.21140376,172.98,172.84,7.1287]
[1740152383730,194.15626987,172.97,172.84,7.1287]
[1740152384325,194.15626987,172.97,172.85,38.21140376]
[1740152384529,194.15626987,172.97,172.91,38.21140376]
[1740152384530,1.15626987,172.97,172.91,38.21140376]
[1740152384726,38.21140376,173.07,172.91,38.21140376]
[1740152384920,38.21140376,173.1,172.94,38.21140376]
[1740152385120,152.10911921,173.12,172.95,6.9375]
[1740152385327,5.7757,173.09,172.95,6.9375]
[1740152385531,38.21140376,173.1,172.95,6.9375]
[1740152385828,152.10911921,173.07,172.95,6.9375]
[1740152386330,0.04003397,173.04,173.01,0.0444269]
[1740152386734,152.10911921,173.07,173.01,0.0444269]
[1740152387226,116.43421921,173.07,173.03,38.21140376]
[1740152387422,90.69381921,173.07,173.06,5.7764]
[1740152387629,90.69381921,173.07,173.01,0.0444269]
[1740152387822,90.69381921,173.07,173.04,5.777]
[1740152388021,38.21140376,173.18,172.95,3.447]
[1740152388022,38.21140376,173.12,172.97,38.21140376]
[1740152388231,38.21140376,173.12,173.02,0.04316105]
[1740152388232,0.04144947,173.06,173.02,0.04316105]
[1740152388624,5.7774,173.03,173.02,0.04316105]
[1740152388821,38.25285323,173.06,172.88,38.21140376]
[1740152389021,193.0,173.05,172.88,38.21140376]
[1740152389222,38.21140376,173.03,172.87,3.585]
[1740152390029,38.21140376,173.0,172.87,3.585]
[1740152390228,38.24994892,172.97,172.87,3.585]
[1740152390527,38.24994892,172.97,172.82,38.21140376]
[1740152390723,5.7802,172.95,172.92,0.04355334]
[1740152390932,38.21140376,172.97,172.82,38.21140376]
[1740152391335,0.04103763,172.95,172.92,0.03647528]
[1740152391734,193.0,173.01,172.86,3.4568]
[1740152391931,193.0,173.01,172.91,5.7814]
[1740152392132,193.0,173.01,172.92,0.04034879]
[1740152392133,0.04019732,172.95,172.92,0.04034879]
[1740152393539,38.21140376,172.94,172.92,0.00251508]
[1740152393741,38.21140376,172.94,172.8,3.3891]
[1740152393943,3.4122,172.93,172.8,3.3891]
[1740152394238,3.4122,172.93,172.82,38.21140376]
[1740152394434,193.0,172.95,172.85,38.21140376]
[1740152394741,193.0,172.95,172.88,5.7825]
[1740152394942,193.0,173.02,172.85,38.21140376]
[1740152395143,0.03935712,172.92,172.88,0.03688259]
[1740152395337,0.03935712,172.92,172.91,5.7815]
[1740152395532,193.0,173.02,172.86,7.0991]
[1740152395736,193.0,173.02,172.88,0.03649567]
[1740152395942,0.04074126,172.93,172.89,5.7821]
[1740152396241,193.0,173.02,172.89,5.7821]
[1740152396443,193.0,173.02,172.93,0.04301224]
[1740152396738,0.03724224,172.97,172.93,0.04301224]
[1740152399343,0.03724224,172.97,172.94,5.7804]
[1740152399739,0.03724224,172.97,172.93,0.04301224]
[1740152400944,7.2462,173.06,172.93,0.04301224]
[1740152401338,7.2462,173.06,172.91,38.21140376]
[1740152401339,45.45760376,173.06,172.91,38.21140376]
[1740152401539,45.45760376,173.06,172.89,3.5213]
[1740152402144,0.04282196,172.99,172.96,0.03835484]